bitfinex/quotes_SOLUSD_20251207
["timestamp","ask_amount","ask_price","bid_price","bid_amount"]
[1765084434623,0.66,132.95,132.93,3.95690371]
[1765084434831,0.66,132.95,132.93,0.5]
[1765084435030,8.18178452,132.95,132.93,0.5]
[1765084435540,17.73994492,132.94,132.93,0.5]
[1765084435845,17.73994492,132.94,132.91,1e-08]
[1765084436026,0.67,132.93,132.91,1e-08]
[1765084437652,0.67,132.93,132.91,0.50000001]
[1765084438042,8.19286647,132.93,132.91,0.50000001]
[1765084438557,0.67,132.92,132.91,0.50000001]
[1765084439556,8.80994492,132.92,132.91,0.50000001]
[1765084439742,9.47994492,132.92,132.91,0.50000001]
[1765084440332,9.47994492,132.92,132.91,3.95690372]
[1765084441157,9.47994492,132.92,132.91,0.50000001]
[1765084445360,8.80994492,132.92,132.91,0.50000001]
[1765084445765,30.85461495,132.94,132.91,4.47690372]
[1765084445766,22.59461495,132.94,132.91,4.47690372]
[1765084446051,8.80994492,132.93,132.92,3.45690371]
[1765084446762,8.80994492,132.93,132.92,11.71690371]
[1765084447251,8.80994492,132.93,132.91,4.47690372]
[1765084447566,9.47994492,132.94,132.91,16.19380743]
[1765084447735,9.47994492,132.94,132.91,23.71763186]
[1765084447937,0.67,132.93,132.91,23.19763186]
[1765084448133,0.67,132.93,132.91,23.71763186]
[1765084448452,9.47994492,132.94,132.91,23.71763186]
[1765084448860,8.80994492,132.94,132.91,23.71763186]
[1765084449062,9.47994492,132.94,132.91,23.71763186]
[1765084449264,0.67,132.93,132.91,23.19763186]
[1765084450170,0.67,132.93,132.91,11.48072815]
[1765084450680,0.67,132.93,132.92,15.78193421]
[1765084451266,0.67,132.93,132.91,12.00072815]
[1765084451467,0.67,132.93,132.92,15.78193421]
[1765084452057,0.67,132.93,132.91,11.48072815]
[1765084452261,0.67,132.93,132.91,27.26266236]
[1765084452560,0.67,132.93,132.91,11.48072815]
[1765084452870,0.67,132.93,132.92,15.78193421]
[1765084453044,0.67,132.93,132.91,11.48072815]
[1765084453373,0.67,132.93,132.91,27.26266236]
[1765084456772,8.80994492,132.92,132.91,23.80575865]
[1765084458307,0.67,132.92,132.91,16.28193422]
[1765084461778,0.71,132.92,132.91,16.28193422]
[1765084462078,0.71,132.92,132.91,0.50000001]
[1765084462268,8.23332229,132.92,132.91,0.50000001]
[1765084463081,8.23332229,132.92,132.91,1e-08]
[1765084463458,17.04326721,132.92,132.91,1e-08]
[1765084468785,9.51994492,132.92,132.91,1e-08]
[1765084468967,8.80994492,132.92,132.91,3.45690372]
[1765084469369,9.51994492,132.92,132.91,3.45690372]
[1765084469868,9.51994492,132.92,132.91,19.239558]
[1765084471591,9.51994492,132.92,132.91,3.45690372]
[1765084472467,9.51994492,132.92,132.91,2.21359337]
[1765084475292,9.51994492,132.92,132.91,9.73748171]
[1765084475690,8.80994492,132.92,132.91,17.26172834]
[1765084476396,9.51994492,132.92,132.91,17.26172834]
[1765084477097,8.80994492,132.92,132.91,17.78172834]
[1765084478606,8.80994492,132.92,132.91,25.18172834]
[1765084480202,0.71,132.95,132.91,25.18172834]
[1765084480376,8.80994492,132.94,132.93,2.21359336]
[1765084480784,0.71,132.94,132.93,2.21359336]
[1765084481799,8.80994492,132.95,132.93,2.21359336]
[1765084481997,0.71,132.94,132.93,2.21359336]
[1765084482896,0.71,132.94,132.93,17.99483235]
[1765084483905,9.51994492,132.95,132.93,17.99483235]
[1765084484105,0.71,132.94,132.93,17.99483235]
[1765084484404,8.80994492,132.95,132.93,17.99483235]
[1765084484589,9.51994492,132.95,132.93,17.99483235]
[1765084485509,0.71,132.94,132.93,17.99483235]
[1765084485806,9.51994492,132.95,132.93,2.21359336]
[1765084486010,0.71,132.94,132.93,2.21359336]
[1765084489220,8.80994492,132.95,132.93,2.73359336]
[1765084489510,9.51994492,132.95,132.93,2.21359336]
[1765084490012,0.71,132.94,132.93,2.21359336]
[1765084497620,9.45994492,132.95,132.93,9.73634661]
[1765084498121,17.06994492,132.96,132.93,9.73634661]
[1765084498295,0.65,132.94,132.93,9.73634661]
[1765084498493,0.65,132.95,132.93,9.73634661]
[1765084501098,8.80994492,132.96,132.94,2.21359336]
[1765084501420,9.45994492,132.96,132.95,2.21359336]
[1765084501622,9.45994492,132.96,132.93,16.30275325]
[1765084501930,9.45994492,132.96,132.95,2.21359336]
[1765084502217,9.45994492,132.96,132.93,16.30275325]
[1765084502218,8.80994492,132.94,132.93,14.92275325]
[1765084502424,8.80994492,132.94,132.93,9.61359336]
[1765084502604,0.65,132.94,132.93,7.4]
[1765084502805,0.65,132.94,132.93,2.21359336]
[1765084506630,9.45994492,132.94,132.93,2.21359336]
[1765084507214,9.45994492,132.94,132.91,7.52374295]
[1765084507411,0.65,132.93,132.92,2.21359336]
[1765084513015,0.65,132.95,132.92,10.25664026]
[1765084513221,8.80994492,132.94,132.93,2.21359336]
[1765084515724,0.65,132.94,132.93,2.21359336]
[1765084519251,0.65,132.94,132.93,9.73634969]
[1765084519454,8.80994492,132.96,132.93,9.73634969]
[1765084519455,0.65,132.95,132.93,9.73634969]
[1765084523350,7.5200241,132.98,132.94,2.73359336]
[1765084523534,8.80994492,132.96,132.94,0.52]
[1765084523927,0.67,132.96,132.93,23.82344572]
[1765084524542,0.67,132.96,132.95,2.21359336]
[1765084525217,9.47994492,132.98,132.95,2.21359336]
[1765084525422,8.80994492,132.96,132.94,0.52]
[1765084525752,8.80994492,132.96,132.95,2.21359336]
[1765084526850,8.80994492,132.96,132.95,9.7350311]
[1765084528546,8.80994492,132.96,132.95,10.2350311]
[1765084534362,8.80994492,132.96,132.95,11.47770266]
[1765084541650,9.47994492,132.96,132.95,11.47770266]
[1765084547075,9.47994492,132.96,132.95,27.25723177]
[1765084548076,9.47994492,132.96,132.95,19.73579403]
[1765084548257,9.47994492,132.96,132.95,0.5]
[1765084563181,8.80994492,132.96,132.95,0.5]
[1765084563554,9.50994492,132.96,132.95,0.5]
[1765084566466,9.50994492,132.96,132.95,3.95626492]
[1765084572298,9.50994492,132.96,132.95,0.5]
[1765084588909,9.50994492,132.96,132.95,3.95626492]
[1765084590010,8.80994492,132.96,132.95,3.95626492]
[1765084590405,8.80994492,132.96,132.95,20.486335]
[1765084593424,8.80994492,132.96,132.95,28.00795967]
[1765084595914,8.80994492,132.96,132.95,35.40795967]
[1765084596123,8.80994492,132.96,132.95,28.00795967]
[1765084596423,8.80994492,132.96,132.95,26.763697]
[1765084600999,8.80994492,132.96,132.95,34.163697]
[1765084601323,8.80994492,132.96,132.95,26.763697]
[1765084606128,8.80994492,132.96,132.95,27.263697]
[1765084606728,8.80994492,132.96,132.95,10.23362692]
[1765084608499,9.47994492,132.96,132.95,10.23362692]
[1765084608703,9.47994492,132.96,132.95,26.01315573]
[1765084621832,8.80994492,132.96,132.95,26.01315573]
[1765084622336,9.49994492,132.96,132.95,26.01315573]
[1765084630824,15.77952881,132.99,132.95,34.79315573]
[1765084630825,8.80994492,132.98,132.95,34.79315573]
[1765084631023,8.80994492,132.98,132.97,2.21200225]
[1765084632137,8.80994492,132.98,132.97,32.31350496]
[1765084638853,0.69,133.01,132.97,32.83350496]
[1765084639053,8.80994492,133.0,132.97,30.62150271]
[1765084639236,8.80994492,133.0,132.99,2.21200225]
[1765084639556,0.69,133.0,132.99,2.21200225]
[1765084640251,0.69,133.0,132.99,11.02194717]
[1765084646558,0.69,133.0,132.99,8.80994492]
[1765084646758,8.80994492,132.99,132.94,7.52199729]
[1765084647066,11.02194717,132.99,132.94,9.73399954]
[1765084647243,8.80994492,132.97,132.94,9.73399954]
[1765084647444,8.80994492,132.97,132.95,2.21200225]
[1765084647770,9.48994492,132.96,132.95,2.21200225]
[1765084651165,9.48994492,132.96,132.95,9.61200225]
[1765084651338,8.80994492,132.96,132.95,17.13362692]
[1765084651540,9.48994492,132.96,132.95,9.73362692]
[1765084654839,9.48994492,132.96,132.95,2.21200225]
[1765084656333,9.48994492,132.96,132.95,3.4570729]
[1765084656781,9.48994492,132.96,132.94,3.4570729]
[1765084656782,8.80994492,132.95,132.94,3.4570729]
[1765084657079,9.48994492,132.95,132.94,3.4570729]
[1765084658565,9.48994492,132.96,132.94,3.4570729]
[1765084658874,9.48994492,132.96,132.95,3.4570729]
[1765084659265,0.68,132.95,132.94,3.4570729]
[1765084659654,9.48994492,132.96,132.94,3.4570729]
[1765084660756,8.80994492,132.96,132.94,3.4570729]
[1765084660958,0.68,132.95,132.94,3.4570729]
[1765084661157,0.68,132.95,132.94,10.8570729]
[1765084661858,8.80994492,132.96,132.94,10.8570729]
[1765084662055,0.68,132.95,132.94,7.4]
[1765084662280,0.68,132.95,132.94,3.4570729]
[1765084663157,9.48994492,132.96,132.94,3.4570729]
[1765084663584,0.68,132.95,132.94,3.4570729]
[1765084664070,0.68,132.95,132.93,3.4570729]
[1765084664671,8.20196212,132.95,132.92,3.4570729]
[1765084664883,8.20196212,132.95,132.91,3.45707291]
[1765084665180,8.80994492,132.93,132.91,3.45707291]
[1765084665596,0.68,132.92,132.91,3.45707291]
[1765084665751,0.68,132.92,132.91,10.98096125]
[1765084668379,8.80994492,132.94,132.91,10.98096125]
[1765084668575,0.68,132.93,132.91,11.70096125]
[1765084668779,0.68,132.93,132.91,10.98096125]
[1765084670678,0.68,132.93,132.91,11.64096125]
[1765084671078,0.68,132.93,132.91,10.98096125]
[1765084673891,0.68,132.93,132.91,3.45707291]
[1765084675789,8.80994492,132.92,132.91,3.45707291]
[1765084675996,8.80994492,132.92,132.91,1e-08]
[1765084676291,9.51994492,132.92,132.91,1e-08]
[1765084676662,17.04326721,132.92,132.91,1e-08]
[1765084689718,20.50034011,132.92,132.91,1e-08]
[1765084690001,17.04326721,132.92,132.91,1e-08]
[1765084697027,17.04326721,132.92,132.86,7.52660305]
[1765084697028,124.80034011,132.92,132.86,3.4570729]
[1765084697191,8.80994492,132.9,132.86,3.4570729]
[1765084697390,8.80994492,132.9,132.85,4.1270729]
[1765084697391,8.80994492,132.88,132.85,4.1270729]
[1765084697592,8.80994492,132.88,132.85,0.67]
[1765084697893,8.80994492,132.86,132.84,4.3270729]
[1765084698301,0.71,132.86,132.84,4.3270729]
[1765084699306,8.23687184,132.86,132.84,4.3270729]
[1765084699499,8.23687184,132.86,132.84,0.87]
[1765084700419,8.23687184,132.86,132.84,0.2]
[1765084701209,8.23687184,132.86,132.84,0.91]
[1765084701406,9.48994492,132.85,132.84,0.2]
[1765084703617,17.01723133,132.85,132.84,0.2]
[1765084705305,39.29252026,132.85,132.77,9.17]
[1765084705622,39.29252026,132.85,132.77,4.3670729]
[1765084705623,28.57588182,132.82,132.77,4.3670729]
[1765084705796,8.80994492,132.8,132.77,0.91]
[1765084705992,8.80994492,132.8,132.77,0.2]
[1765084706196,8.80994492,132.78,132.77,0.2]
[1765084706616,0.68,132.78,132.77,0.2]
[1765084706809,8.2112547,132.78,132.77,0.2]
[1765084707119,28.73827252,132.78,132.77,0.2]
[1765084707321,20.47827252,132.78,132.77,0.2]
[1765084707521,16.34119962,132.78,132.77,0.2]
[1765084708003,16.34119962,132.78,132.77,0.91]
[1765084710418,8.80994492,132.78,132.77,4.3670729]
[1765084711829,8.80994492,132.78,132.77,0.91]
[1765084712123,8.80994492,132.78,132.77,4.3670729]
[1765084717842,8.80994492,132.78,132.77,3.6570729]
[1765084718417,8.80994492,132.78,132.77,2.41840891]
[1765084718918,8.80994492,132.78,132.77,3.12840891]
[1765084725144,8.80994492,132.78,132.77,2.41840891]
[1765084725345,8.80994492,132.78,132.77,0.2]
[1765084725852,0.68,132.83,132.77,3.12840891]
[1765084726138,8.80994492,132.82,132.81,2.21840891]
[1765084727320,8.80994492,132.82,132.8,2.92840891]
[1765084729541,8.80994492,132.82,132.8,2.21840891]
[1765084729730,9.48994492,132.82,132.8,2.21840891]
[1765084730946,9.48994492,132.82,132.8,2.93840891]
[1765084731739,9.48994492,132.82,132.8,2.21840891]
[1765084735553,9.48994492,132.82,132.8,2.93840891]
[1765084735770,8.80994492,132.82,132.8,2.93840891]
[1765084736643,8.80994492,132.83,132.81,2.93840891]
[1765084737150,8.80994492,132.83,132.81,2.21840891]
[1765084737351,8.80994492,132.83,132.81,2.93840891]
[1765084737728,8.80994492,132.83,132.82,0.72]
[1765084740556,8.80994492,132.84,132.82,0.72]
[1765084740859,9.52994492,132.84,132.82,0.72]
[1765084741357,9.52994492,132.84,132.81,10.43741224]
[1765084741555,9.52994492,132.84,132.82,0.69]
[1765084741861,8.80994492,132.84,132.82,0.69]
[1765084743130,8.80994492,132.84,132.82,10.43731383]
[1765084743646,8.80994492,132.86,132.83,2.90840891]
[1765084743844,8.80994492,132.86,132.85,2.21840891]
[1765084744142,9.52994492,132.87,132.84,2.90840891]
[1765084744340,9.52994492,132.87,132.85,2.21840891]
[1765084746836,9.52994492,132.87,132.84,10.43607108]
[1765084747045,9.52994492,132.87,132.85,2.21840891]
[1765084747232,9.52994492,132.87,132.84,8.21766217]
[1765084747439,0.72,132.86,132.83,2.21840891]
[1765084747643,0.72,132.86,132.83,2.90840891]
[1765084748628,0.72,132.86,132.83,10.4367727]
[1765084748831,0.72,132.86,132.83,10.9367727]
[1765084749937,0.72,132.86,132.84,2.21840891]
[1765084756838,0.72,132.86,132.84,2.90840891]
[1765084758745,0.72,132.86,132.84,2.21840891]
[1765084759045,0.72,132.86,132.83,10.9367727]
[1765084762761,8.80994492,132.87,132.84,0.65]
[1765084763070,8.80994492,132.87,132.84,2.86840891]
[1765084763245,9.51994492,132.87,132.84,2.86840891]
[1765084764964,9.51994492,132.87,132.84,10.39610131]
[1765084766059,9.51994492,132.87,132.84,2.86840891]
[1765084766268,0.71,132.86,132.83,10.89675872]
[1765084766766,0.71,132.86,132.83,10.24675872]
[1765084766940,0.71,132.86,132.84,0.65]
[1765084767273,9.51994492,132.87,132.84,0.65]
[1765084767475,0.71,132.86,132.84,0.65]
[1765084767642,17.0462004,132.87,132.84,0.65]
[1765084768363,0.71,132.86,132.83,10.89675872]
[1765084769046,0.71,132.86,132.83,8.67834981]
[1765084769247,0.71,132.86,132.83,10.89675872]
[1765084769545,0.71,132.86,132.84,0.65]
[1765084779746,8.80994492,132.86,132.84,11.64027362]
[1765084780764,8.80994492,132.84,132.83,0.5]
[1765084781280,0.71,132.84,132.83,0.5]
[1765084781782,9.51994492,132.84,132.83,0.5]
[1765084782264,17.04779797,132.84,132.83,0.5]
[1765084782461,8.80994492,132.83,132.81,3.46246779]
[1765084782672,9.51994492,132.83,132.81,3.46246779]
[1765084783064,9.51994492,132.83,132.81,4.11246779]
[1765084784985,9.51994492,132.83,132.81,3.46246779]
[1765084785287,8.80994492,132.81,132.78,3.46246779]
[1765084785477,8.80994492,132.81,132.77,4.31246779]
[1765084785669,0.71,132.8,132.77,4.31246779]
[1765084786161,0.71,132.8,132.77,11.84418236]
[1765084789480,8.80994492,132.79,132.77,7.73171457]
[1765084789985,0.71,132.79,132.77,8.38171457]
[1765084791857,0.71,132.79,132.77,0.2]
[1765084792588,0.71,132.79,132.77,3.66246779]
[1765084793685,17.75994492,132.81,132.78,4.18246779]
[1765084794065,0.69,132.8,132.78,4.18246779]
[1765084794897,0.69,132.8,132.78,11.71370433]
[1765084795790,0.69,132.8,132.78,10.99370433]
[1765084795960,0.69,132.8,132.78,11.71370433]
[1765084800884,0.69,132.8,132.78,10.99370433]
[1765084801279,0.69,132.8,132.78,11.71370433]
[1765084801781,0.69,132.82,132.79,4.18246779]
[1765084801972,0.69,132.82,132.8,3.46246779]
[1765084802479,8.80994492,132.83,132.81,4.18246779]
[1765084803372,0.69,132.83,132.81,4.18246779]
[1765084803580,9.49994492,132.84,132.81,4.18246779]
[1765084803788,0.69,132.83,132.81,4.18246779]
[1765084803987,0.69,132.83,132.8,7.52993189]
[1765084803988,9.49994492,132.84,132.82,4.18246779]
[1765084804496,9.49994492,132.84,132.82,3.46246779]
[1765084806695,9.49994492,132.84,132.82,4.18246779]
[1765084808393,8.80994492,132.84,132.82,3.46246779]
[1765084808576,0.69,132.83,132.81,3.46246779]
[1765084812604,0.69,132.83,132.81,4.18246779]
[1765084814874,0.69,132.83,132.81,3.46246779]
[1765084816802,0.69,132.83,132.81,4.18246779]
[1765084819797,0.69,132.83,132.81,11.58246779]
[1765084821303,0.69,132.83,132.81,4.18246779]
[1765084823103,0.69,132.83,132.81,3.46246779]
[1765084823303,25.30781467,132.84,132.81,4.14246779]
[1765084823684,24.59781467,132.84,132.81,4.14246779]
[1765084823889,0.71,132.83,132.81,4.14246779]
[1765084831808,0.71,132.83,132.81,3.46246779]
[1765084831997,0.71,132.83,132.81,4.14246779]
[1765084833905,17.06994492,132.84,132.81,11.67196995]
[1765084834109,8.80994492,132.85,132.82,3.46246779]
[1765084834299,17.77994492,132.85,132.83,3.46246779]
[1765084835414,17.77994492,132.85,132.82,11.67120404]
[1765084836087,17.77994492,132.85,132.83,0.68]
[1765084836288,17.77994492,132.85,132.82,11.67120404]
[1765084836918,17.77994492,132.85,132.83,0.68]
[1765084838817,17.77994492,132.85,132.82,10.99120404]
[1765084838818,0.71,132.84,132.82,4.14246779]
[1765084839923,8.80994492,132.83,132.81,3.46246779]
[1765084840096,9.51994492,132.83,132.81,3.46246779]
[1765084840294,9.51994492,132.83,132.81,10.86246779]
[1765084840498,9.51994492,132.83,132.81,2.21702359]
[1765084841517,7.52844766,132.83,132.8,2.21702359]
[1765084841693,8.80994492,132.81,132.8,2.21702359]
[1765084842517,8.80994492,132.81,132.8,2.89702359]
[1765084849627,8.80994492,132.82,132.8,2.89702359]
[1765084849822,8.80994492,132.82,132.81,2.89702359]
[1765084850025,8.80994492,132.83,132.81,2.89702359]
[1765084850204,9.51994492,132.83,132.82,2.21702359]
[1765084851104,7.52747891,132.85,132.82,2.21702359]
[1765084851426,9.48994492,132.84,132.82,2.88702359]
[1765084852204,8.80994492,132.84,132.82,2.21702359]
[1765084852405,0.68,132.83,132.82,2.21702359]
[1765084853427,8.80994492,132.84,132.82,2.21702359]
[1765084853633,9.51994492,132.84,132.82,2.87702359]
[1765084854026,8.80994492,132.84,132.82,2.21702359]
[1765084854228,0.71,132.83,132.81,2.21702359]
[1765084855324,0.71,132.83,132.81,9.61702359]
[1765084855629,0.71,132.83,132.81,2.21702359]
[1765084856131,0.71,132.83,132.81,2.87702359]
[1765084860436,0.71,132.83,132.81,10.27702359]
[1765084860634,9.51994492,132.83,132.82,2.21702359]
[1765084861010,8.80994492,132.83,132.82,2.87702359]
[1765084862023,8.80994492,132.83,132.82,9.74601018]
[1765084862531,8.80994492,132.83,132.82,10.40601018]
[1765084865343,8.80994492,132.83,132.82,17.80601018]
[1765084865544,8.80994492,132.83,132.82,10.40601018]
[1765084868540,8.80994492,132.83,132.82,8.18898659]
[1765084868843,8.80994492,132.83,132.82,2.21702359]
[1765084869633,9.51994492,132.83,132.81,2.21702359]
[1765084869832,0.71,132.85,132.82,2.87702359]
[1765084870034,8.80994492,132.84,132.83,2.21702359]
[1765084870433,9.51994492,132.84,132.83,2.21702359]
[1765084873953,8.80994492,132.84,132.83,2.21702359]
[1765084874135,8.80994492,132.84,132.83,2.87702359]
[1765084874340,8.80994492,132.84,132.83,2.21702359]
[1765084875761,8.80994492,132.85,132.83,2.21702359]
[1765084875943,0.71,132.84,132.83,2.21702359]
[1765084878156,0.71,132.84,132.81,7.5295079]
[1765084878372,0.71,132.84,132.82,2.21702359]
[1765084878749,0.71,132.84,132.82,9.61702359]
[1765084879261,8.23787504,132.84,132.82,7.4]
[1765084879746,9.51994492,132.83,132.82,7.4]
[1765084881343,9.51994492,132.83,132.82,9.61702359]
[1765084881758,8.80994492,132.83,132.82,9.61702359]
[1765084890057,8.80994492,132.83,132.82,10.27702359]
[1765084893459,8.80994492,132.83,132.82,17.80601018]
[1765084896190,8.80994492,132.85,132.82,10.40601018]
[1765084896467,8.80994492,132.85,132.84,2.21702359]
[1765084900055,8.80994492,132.85,132.84,2.87702359]
[1765084900384,8.80994492,132.85,132.84,4.1223305]
[1765084901057,8.80994492,132.85,132.84,3.4623305]
[1765084902985,8.80994492,132.85,132.84,4.1223305]
[1765084904880,8.80994492,132.85,132.84,3.4623305]
[1765084906073,8.80994492,132.85,132.83,11.65057599]
[1765084906572,8.80994492,132.85,132.83,19.05057599]
[1765084906772,8.80994492,132.85,132.83,11.65057599]
[1765084907680,8.80994492,132.86,132.83,11.65057599]
[1765084907975,8.80994492,132.84,132.83,11.65057599]
[1765084908180,9.50994492,132.86,132.83,11.65057599]
[1765084909368,9.50994492,132.86,132.84,3.4623305]
[1765084913157,9.41069644,132.86,132.84,3.4623305]
[1765084916290,9.41069644,132.86,132.85,3.4623305]
[1765084916665,9.41069644,132.86,132.84,3.4623305]
[1765084917072,9.41069644,132.86,132.84,10.8623305]
[1765084918268,9.41069644,132.86,132.84,3.4623305]
[1765084921991,9.41069644,132.86,132.84,10.8623305]
[1765084922192,104.3,132.88,132.85,3.4623305]
[1765084922372,8.80994492,132.87,132.86,3.4623305]
[1765084922573,9.47994492,132.88,132.86,3.4623305]
[1765084924590,0.67,132.87,132.86,3.4623305]
[1765084928070,0.67,132.87,132.85,3.4623305]
[1765084929496,0.67,132.87,132.84,7.52769022]
[1765084929706,0.67,132.87,132.85,3.4623305]
[1765084931000,0.67,132.87,132.84,3.4623305]
[1765084931701,0.67,132.87,132.84,4.1523305]
[1765084932085,0.67,132.87,132.85,0.5]
[1765084932287,0.67,132.87,132.85,3.9623305]
[1765084932494,8.80994492,132.86,132.85,3.9623305]
[1765084933005,0.67,132.86,132.85,3.9623305]
[1765084933301,0.67,132.86,132.85,0.5]
[1765084942113,9.46994492,132.87,132.85,3.9623305]
[1765084945525,8.80994492,132.87,132.86,3.4623305]
[1765084947126,8.80994492,132.87,132.85,4.6223305]
[1765084947329,9.46994492,132.87,132.85,4.6223305]
[1765084950107,9.46994492,132.86,132.85,0.5]
[1765084952008,16.99666477,132.86,132.85,0.5]
[1765084952611,8.80994492,132.85,132.83,3.4623305]
[1765084952811,9.46994492,132.85,132.83,3.4623305]
[1765084952999,0.66,132.84,132.83,3.4623305]
[1765084954333,0.66,132.84,132.83,10.8623305]
[1765084955031,8.80994492,132.85,132.83,10.8623305]
[1765084955228,0.66,132.84,132.83,10.8623305]
[1765084955434,9.46994492,132.85,132.83,11.5223305]
[1765084955635,0.66,132.84,132.83,7.4]
[1765084955831,9.46994492,132.84,132.83,7.4]
[1765084956031,9.46994492,132.84,132.82,3.4623305]
[1765084956240,0.66,132.83,132.82,3.4623305]
[1765084956814,9.46994492,132.84,132.82,3.4623305]
[1765084957234,0.66,132.83,132.82,3.4623305]
[1765084959532,0.66,132.83,132.82,10.8623305]
[1765084959735,0.66,132.83,132.82,3.4623305]
[1765084960030,8.80994492,132.84,132.82,3.4623305]
[1765084960031,9.46994492,132.84,132.82,3.4623305]
[1765084960238,9.46994492,132.84,132.82,4.1223305]
[1765084962428,9.46994492,132.84,132.82,2.87670925]
[1765084964340,9.46994492,132.84,132.82,10.27670925]
[1765084964511,8.80994492,132.84,132.82,10.27670925]
[1765084964712,8.80994492,132.84,132.82,2.87670925]
[1765084964916,9.46994492,132.84,132.82,2.87670925]
[1765084965840,9.46994492,132.83,132.81,2.21670925]
[1765084966025,8.80994492,132.82,132.8,2.21670925]
[1765084966226,9.46994492,132.82,132.8,2.21670925]
[1765084966636,9.46994492,132.82,132.8,2.87670925]
[1765084967830,9.46994492,132.82,132.81,2.21670925]
[1765084970125,8.80994492,132.82,132.81,2.21670925]
[1765084971744,15.78803079,132.84,132.81,2.21670925]
[1765084971745,8.80994492,132.84,132.81,2.90670925]
[1765084971942,8.80994492,132.84,132.83,2.21670925]
[1765084972747,8.80994492,132.84,132.83,2.90670925]
[1765084972921,8.80994492,132.85,132.83,2.90670925]
[1765084973122,8.80994492,132.85,132.84,2.21670925]
[1765084975249,8.80994492,132.85,132.83,2.90670925]
[1765084975849,0.72,132.85,132.82,0.66]
[1765084976027,0.72,132.85,132.83,2.21670925]
[1765084976226,0.72,132.85,132.83,9.61670925]
[1765084976522,0.72,132.85,132.83,2.21670925]
[1765084977451,0.72,132.85,132.83,2.87670925]
[1765084981453,0.72,132.85,132.83,2.21670925]
[1765084982148,0.72,132.85,132.83,2.87670925]
[1765084983859,9.52994492,132.85,132.84,2.21670925]
[1765084986460,9.52994492,132.85,132.82,8.18884067]
[1765084986658,9.52994492,132.84,132.82,2.21670925]
[1765084986965,9.52994492,132.84,132.82,9.61670925]
[1765084987150,0.72,132.84,132.82,9.61670925]
[1765084988569,0.72,132.84,132.82,10.27670925]
[1765084997577,8.80994492,132.83,132.82,10.27670925]
[1765084999377,8.80994492,132.83,132.82,7.4]
[1765084999681,8.80994492,132.83,132.82,10.27670925]
[1765085005996,0.72,132.83,132.82,7.4]
[1765085006205,0.72,132.83,132.82,9.61670925]
[1765085007295,8.80994492,132.84,132.82,9.61670925]
[1765085007471,9.52994492,132.84,132.82,7.4]
[1765085009266,9.52994492,132.84,132.82,8.08]
[1765085009697,9.52994492,132.84,132.82,10.29670925]
[1765085011696,9.52994492,132.84,132.82,2.89670925]
[1765085013667,9.52994492,132.84,132.82,10.29670925]
[1765085018194,9.52994492,132.84,132.82,9.61670925]
[1765085020508,9.52994492,132.84,132.82,10.29670925]
[1765085020800,8.80994492,132.84,132.82,10.29670925]
[1765085021301,9.52994492,132.84,132.82,10.29670925]
[1765085022171,8.80994492,132.84,132.83,0.68]
[1765085022376,9.52994492,132.84,132.82,3.4633987]
[1765085023196,9.52994492,132.84,132.82,4.1433987]
[1765085032811,9.52994492,132.84,132.82,11.5433987]
[1765085033109,9.52994492,132.84,132.82,4.1433987]
[1765085033302,9.52994492,132.84,132.82,0.68]
[1765085035190,9.52994492,132.84,132.81,21.20268022]
[1765085035711,9.52994492,132.84,132.81,11.6727353]
[1765085037809,9.52994492,132.84,132.82,7.4]
[1765085039788,9.52994492,132.84,132.82,10.8633987]
[1765085041211,9.52994492,132.84,132.82,11.5633987]
[1765085041601,9.52994492,132.84,132.82,4.1633987]
[1765085044920,8.80994492,132.84,132.82,10.99210635]
[1765085045110,8.80994492,132.85,132.83,4.1633987]
[1765085045317,9.51994492,132.85,132.83,0.7]
[1765085045520,9.51994492,132.85,132.82,11.69223543]
[1765085045902,8.80994492,132.85,132.82,34.29876871]
[1765085046219,8.80994492,132.83,132.82,34.29876871]
[1765085046526,8.80994492,132.83,132.82,11.69223543]
[1765085048427,8.80994492,132.83,132.82,19.09223543]
[1765085048721,9.51994492,132.85,132.82,11.69223543]
[1765085049226,8.80994492,132.83,132.82,11.69223543]
[1765085050643,8.80994492,132.85,132.82,11.69223543]
[1765085050932,9.51994492,132.85,132.82,11.69223543]
[1765085051135,8.80994492,132.83,132.82,11.69223543]
[1765085051631,9.51994492,132.85,132.82,11.69223543]
[1765085051823,9.51994492,132.85,132.82,20.50218035]
[1765085052023,8.80994492,132.83,132.82,20.50218035]
[1765085053632,8.80994492,132.83,132.82,27.90218035]